fUST/lending_fUST_20241224
["ID","MTS","AMOUNT","RATE_DAILY","PERIOD"]
[346534145,1735050643516,-689.43,0.00013972,2]
[346534146,1735050643525,-1394.48,0.00013972,2]
[346534147,1735050643535,-1292.19,0.00013972,2]
[346534148,1735050643544,-500.0,0.00013972,2]
[346534149,1735050643554,-210.14636246,0.00013972,2]
[346534150,1735050643564,-509.31,0.00013972,2]
[346534151,1735050643573,-503.45754105,0.00013972,2]
[346534152,1735050643582,-500.0,0.00013972,2]
[346534153,1735050643591,-500.0,0.00013972,2]
[346534154,1735050643601,-576.36,0.00013972,2]
[346534155,1735050643611,-500.0,0.00013972,2]
[346534156,1735050643621,-500.0,0.00013972,2]
[346534157,1735050643631,-500.0,0.00013972,2]
[346534158,1735050643640,-638.07,0.00013972,2]
[346534159,1735050643650,-759.25,0.00013972,2]
[346534160,1735050643659,-500.0,0.00013972,2]
[346534161,1735050643668,-876.8,0.00013972,2]
[346534162,1735050643678,-500.0,0.00013972,2]
[346534163,1735050643687,-500.0,0.00013972,2]
[346534164,1735050643696,-500.0,0.00013972,2]
[346534165,1735050643705,-500.0,0.00013972,2]
[346534166,1735050643714,-500.0,0.00013972,2]
[346534167,1735050643725,-500.0,0.00013972,2]
[346534168,1735050643735,-500.0,0.00013972,2]
[346534169,1735050643745,-1749.75,0.00013972,2]
[346534170,1735050643754,-500.0,0.00013972,2]
[346534171,1735050643763,-952.83,0.00013972,2]
[346534172,1735050643773,-4384.1,0.00013972,2]
[346534173,1735050643782,-969.48,0.00013972,2]
[346534174,1735050643791,-500.0,0.00013972,2]
[346534175,1735050643801,-4246.37,0.00013972,2]
[346534176,1735050643811,-500.0,0.00013972,2]
[346534177,1735050643821,-500.0,0.00013972,2]
[346534179,1735050643830,-3970.93,0.00013972,2]
[346534181,1735050643839,-1383.55,0.00013972,2]
[346534182,1735050643849,-500.0,0.00013972,2]
[346534183,1735050643858,-559.57448212,0.00013972,2]
[346534184,1735050643867,-500.0,0.00013972,2]
[346534185,1735050643877,-1047.76,0.00013972,2]
[346534186,1735050643887,-21503.12,0.00013972,2]
[346534187,1735050643897,-1013.72,0.00013972,2]
[346534188,1735050643906,-500.0,0.00013972,2]
[346534189,1735050643916,-1748.32,0.00013972,2]
[346534190,1735050643926,-568.26,0.00013972,2]
[346534191,1735050643935,-12191.9,0.00013972,2]
[346534192,1735050643946,-500.0,0.00013972,2]
[346534193,1735050643957,-993.74,0.00013972,2]
[346534194,1735050643966,-500.0,0.00013972,2]
[346534195,1735050643977,-500.0,0.00013972,2]
[346534196,1735050643986,-150.5159041,0.00013972,2]
[346534197,1735050643996,-500.0,0.00013972,2]
[346534198,1735050644006,-500.0,0.00013972,2]
[346534199,1735050644015,-6520.14,0.00013972,2]
[346534200,1735050644025,-500.0,0.00013972,2]
[346534201,1735050644035,-500.0,0.00013972,2]
[346534202,1735050644044,-986.83,0.00013972,2]
[346534203,1735050644053,-1628.76,0.00013972,2]
[346534204,1735050644063,-500.0,0.00013972,2]
[346534205,1735050644072,-503.03649116,0.00013972,2]
[346534206,1735050644081,-500.0,0.00013972,2]
[346534207,1735050644092,-562.0,0.00013972,2]
[346534208,1735050644102,-500.0,0.00013972,2]
[346534209,1735050644111,-150.11,0.00013972,2]
[346534210,1735050644121,-150.11,0.00013972,2]
[346534211,1735050644130,-500.0,0.00013972,2]
[346534212,1735050644140,-175.33635052,0.00013972,2]
[346534213,1735050644149,-500.0,0.00013972,2]
[346534214,1735050644159,-500.0,0.00013972,2]
[346534215,1735050644169,-1531.54,0.00013972,2]
[346534216,1735050644179,-83801.43,0.00013972,2]
[346534217,1735050644188,-500.0,0.00013972,2]
[346534218,1735050644198,-2904.91,0.00013972,2]
[346534219,1735050644207,-1759.92949725,0.00013972,2]
[346534220,1735050644264,-556.48166134,0.00013972,2]
[346534221,1735050644682,-500.0,0.00013698,2]
[346534222,1735050644693,-6293.56884141,0.00013972,2]
[346534223,1735050644702,-500.0,0.00013972,2]
[346534224,1735050644712,-500.0,0.00013972,2]
[346534225,1735050644724,-500.0,0.00013972,2]
[346534226,1735050644733,-500.0,0.00013972,2]
[346534227,1735050644745,-500.0,0.00013972,2]
[346534228,1735050644754,-3400.74,0.00013972,2]
[346534229,1735050644764,-3248.51,0.00013972,2]
[346534230,1735050644774,-690.36,0.00013972,2]
[346534231,1735050644784,-500.0,0.00013972,2]
[346534232,1735050644794,-625.63,0.00013972,2]
[346534233,1735050644804,-500.0,0.00013972,2]
[346534234,1735050644813,-500.0,0.00013973,2]
[346534235,1735050644823,-500.63104045,0.00013973,2]
[346534236,1735050644833,-400.0,0.00013973,2]
[346534237,1735050644842,-600.0,0.00014,2]
[346534238,1735050644852,-10000.0,0.00014,2]
[346534239,1735050644861,-1307.04916441,0.00014,2]
[346534240,1735050644871,-151.0,0.00014,2]
[346534241,1735050644881,-274.55880958,0.00014,5]
[346534242,1735050644891,-153.0,0.0001411,2]
[346534243,1735050644900,-214.1010006,0.0001411,2]
[346534244,1735050644910,-153.3554759,0.0001411,2]
[346534245,1735050644920,-151.0,0.000142,2]
[346534246,1735050644929,-1000.0,0.00014221,2]
[346534247,1735050644939,-1000.0,0.00014221,2]
[346534248,1735050644948,-693.02252449,0.00014241,2]
[346534249,1735050645140,-161.01078522,0.00014245,2]
[346534250,1735050645150,-500.0,0.00014246,2]
[346534251,1735050645161,-226.16344554,0.00014246,2]
[346534252,1735050645171,-500.0,0.00014246,2]
[346534253,1735050645180,-151.0,0.00014246,2]
[346534254,1735050645190,-151.0,0.00014246,2]
[346534255,1735050645201,-151.0,0.00014246,2]
[346534256,1735050645210,-151.0,0.00014246,2]
[346534257,1735050645220,-151.0,0.00014246,2]
[346534258,1735050645230,-151.0,0.00014246,2]
[346534259,1735050645240,-151.0,0.00014246,2]
[346534260,1735050645249,-151.0,0.00014246,2]
[346534261,1735050645259,-151.0,0.00014246,2]
[346534262,1735050645268,-151.0,0.00014246,2]
[346534263,1735050645279,-500.17744206,0.00014246,2]
[346534264,1735050645289,-151.0,0.00014246,2]
[346534265,1735050645299,-500.0,0.00014246,2]
[346534266,1735050645308,-227.00652229,0.00014246,2]
[346534267,1735050645318,-548.6,0.00014246,2]
[346534268,1735050645331,-500.0,0.00014246,2]
[346534269,1735050645343,-500.0,0.00014246,2]
[346534270,1735050645353,-500.0,0.00014246,2]
[346534271,1735050645363,-500.0,0.00014246,2]
[346534272,1735050645375,-500.0,0.00014246,2]
[346534273,1735050645385,-500.0,0.00014246,2]
[346534274,1735050645395,-693.64,0.00014246,2]
[346534275,1735050645406,-637.3269426,0.00014246,2]
[346534276,1735050645420,-500.0,0.00014246,2]
[346534277,1735050645430,-500.0,0.00014246,2]
[346534278,1735050645439,-500.0,0.00014246,2]
[346534279,1735050645448,-500.0,0.00014246,2]
[346534280,1735050645458,-500.0,0.00014246,2]
[346534281,1735050645468,-498.70148102,0.00014246,2]
[346534282,1735050645480,-222.333714,0.00014246,2]
[346534283,1735050645490,-222.333714,0.00014246,2]
[346534284,1735050645500,-222.333714,0.00014246,2]
[346534285,1735050645510,-222.333714,0.00014246,2]
[346534286,1735050645519,-500.0,0.00014246,2]
[346534287,1735050645528,-203.563595,0.00014246,2]
[346534288,1735050645538,-203.563595,0.00014246,2]
[346534289,1735050645547,-500.0,0.00014246,2]
[346534290,1735050645557,-500.0,0.00014246,2]
[346534291,1735050645567,-500.0,0.00014246,2]
[346534292,1735050645576,-505.12731895,0.00014246,2]
[346534293,1735050645585,-500.0,0.00014246,2]
[346534294,1735050645595,-500.0,0.00014246,2]
[346534295,1735050645604,-530.51,0.00014246,2]
[346534296,1735050645613,-500.0,0.00014246,2]
[346534297,1735050645623,-500.0,0.00014246,2]
[346534299,1735050645632,-500.0,0.00014246,2]
[346534300,1735050645642,-359.52415553,0.00014246,2]
[346534301,1735050645651,-500.0,0.00014246,2]
[346534302,1735050645660,-278.245093,0.00014246,2]
[346534304,1735050645670,-500.0,0.00014246,2]
[346534305,1735050645679,-278.245093,0.00014246,2]
[346534306,1735050645689,-278.245093,0.00014246,2]
[346534307,1735050645698,-278.245093,0.00014246,2]
[346534308,1735050645708,-500.0,0.00014246,2]
[346534310,1735050645720,-500.0,0.00014246,2]
[346534312,1735050645730,-500.0,0.00014246,2]
[346534313,1735050645740,-500.0,0.00014246,2]
[346534315,1735050645749,-1213.26,0.00014246,2]
[346534316,1735050645758,-500.0,0.00014246,2]
[346534318,1735050645770,-903.4,0.00014246,2]
[346534319,1735050645779,-251.651807,0.00014246,2]
[346534321,1735050645789,-251.651807,0.00014246,2]
[346534323,1735050645799,-251.651807,0.00014246,2]
[346534324,1735050645808,-251.651807,0.00014246,2]
[346534325,1735050645818,-500.0,0.00014246,2]
[346534327,1735050645828,-500.0,0.00014246,2]
[346534328,1735050645839,-502.77188066,0.00014246,2]
[346534329,1735050645849,-151.0,0.00014246,2]
[346534330,1735050645859,-151.0,0.00014246,2]
[346534331,1735050645870,-500.0,0.00014246,2]
[346534332,1735050645880,-500.0,0.00014246,2]
[346534333,1735050645891,-500.0,0.00014246,2]
[346534334,1735050645901,-500.0,0.00014246,2]
[346534336,1735050645911,-1262.65,0.00014246,2]
[346534337,1735050645922,-500.0,0.00014246,2]
[346534338,1735050645932,-500.0,0.00014246,2]
[346534339,1735050645943,-1110.26,0.00014246,2]
[346534341,1735050645954,-500.0,0.00014246,2]
[346534342,1735050645965,-514.04400885,0.00014246,2]
[346534343,1735050645980,-504.82084746,0.00014246,2]
[346534344,1735050645991,-500.0,0.00014246,2]
[346534345,1735050646002,-500.0,0.00014246,2]
[346534346,1735050646016,-1113.31,0.00014246,2]
[346534347,1735050646026,-500.0,0.00014246,2]
[346534348,1735050646036,-500.0,0.00014246,2]
[346534349,1735050646046,-151.0,0.00014246,2]
[346534350,1735050646056,-151.0,0.00014246,2]
[346534351,1735050646066,-640.37095344,0.00014246,2]
[346534352,1735050646076,-151.0,0.00014246,2]
[346534354,1735050646086,-151.0,0.00014246,2]
[346534356,1735050646096,-500.0,0.00014246,2]
[346534358,1735050646106,-500.0,0.00014246,2]
[346534360,1735050646117,-500.0,0.00014246,2]
[346534362,1735050646127,-500.0,0.00014246,2]
[346534364,1735050646137,-500.0,0.00014246,2]
[346534365,1735050646148,-500.0,0.00014246,2]
[346534367,1735050646159,-500.0,0.00014246,2]
[346534369,1735050646170,-151.0,0.00014246,2]
[346534370,1735050646179,-151.0,0.00014246,2]
[346534371,1735050646189,-500.0,0.00014246,2]
[346534372,1735050646199,-500.0,0.00014246,2]
[346534373,1735050646208,-1003.04,0.00014246,2]
[346534375,1735050646218,-151.0,0.00014246,2]
[346534376,1735050646232,-151.0,0.00014246,2]
[346534377,1735050646241,-500.0,0.00014246,2]
[346534378,1735050646251,-500.0,0.00014246,2]
[346534380,1735050646260,-314.12846196,0.00014246,2]
[346534382,1735050646270,-500.0,0.00014246,2]
[346534383,1735050646279,-500.0,0.00014246,2]
[346534384,1735050646289,-1028.51,0.00014246,2]
[346534385,1735050646298,-941.61,0.00014246,2]
[346534386,1735050646308,-500.0,0.00014246,2]
[346534387,1735050646317,-151.0,0.00014246,2]
[346534388,1735050646327,-151.0,0.00014246,2]
[346534389,1735050646337,-500.0,0.00014246,2]
[346534390,1735050646349,-1895.67,0.00014246,2]
[346534391,1735050646358,-366.87345666,0.00014246,2]
[346534392,1735050646368,-279.2015581,0.00014246,2]
[346534393,1735050646378,-500.0,0.00014246,2]
[346534394,1735050646390,-524.58,0.00014246,2]
[346534395,1735050646399,-500.0,0.00014246,2]
[346534396,1735050646409,-500.0,0.00014246,2]
[346534397,1735050646420,-500.0,0.00014246,2]
[346534398,1735050646429,-500.0,0.00014246,2]
[346534399,1735050646439,-500.0,0.00014246,2]
[346534400,1735050646448,-500.0,0.00014246,2]
[346534401,1735050646458,-151.0,0.00014246,2]
[346534402,1735050646468,-151.0,0.00014246,2]
[346534403,1735050646487,-2377.24,0.00014246,2]
[346534404,1735050646503,-500.0,0.00014246,2]
[346534405,1735050646518,-500.0,0.00014246,2]
[346534406,1735050646533,-500.0,0.00014246,2]
[346534407,1735050646547,-500.0,0.00014246,2]
[346534408,1735050646561,-151.0,0.00014246,2]
[346534409,1735050646575,-151.0,0.00014246,2]
[346534410,1735050646589,-535.74,0.00014246,2]
[346534411,1735050646603,-500.0,0.00014246,2]
[346534412,1735050646616,-6517.31,0.00014246,2]
[346534413,1735050646630,-500.0,0.00014246,2]
[346534414,1735050646644,-500.0,0.00014246,2]
[346534415,1735050646657,-500.0,0.00014246,2]
[346534416,1735050646671,-500.0,0.00014246,2]
[346534417,1735050646683,-502.72,0.00014246,2]
[346534418,1735050646695,-500.0,0.00014246,2]
[346534419,1735050646710,-500.0,0.00014246,2]
[346534420,1735050646725,-723.72,0.00014246,2]
[346534421,1735050646738,-565.67,0.00014246,2]
[346534422,1735050646750,-636.61,0.00014246,2]
[346534423,1735050646762,-511.92,0.00014246,4]
[346534424,1735050646775,-500.0,0.00014246,2]
[346534425,1735050646787,-500.0,0.00014246,2]
[346534426,1735050646803,-500.0,0.00014246,2]
[346534427,1735050646818,-500.0,0.00014246,2]
[346534428,1735050646831,-500.0,0.00014246,2]
[346534429,1735050646845,-500.0,0.00014246,2]
[346534430,1735050646858,-500.0,0.00014246,2]
[346534431,1735050646874,-500.0,0.00014246,2]
[346534432,1735050646885,-500.0,0.00014246,2]
[346534433,1735050646895,-500.0,0.00014246,2]
[346534434,1735050646906,-500.0,0.00014246,2]
[346534435,1735050646918,-500.0,0.00014246,2]
[346534436,1735050646932,-500.0,0.00014246,2]
[346534437,1735050646946,-500.0,0.00014246,2]
[346534438,1735050646959,-500.0,0.00014246,2]
[346534439,1735050646970,-500.0,0.00014246,2]
[346534440,1735050646986,-948.58,0.00014246,2]
[346534441,1735050646999,-539.00900304,0.00014246,2]
[346534442,1735050647013,-564.13,0.00014246,2]
[346534443,1735050647024,-500.0,0.00014246,2]
[346534444,1735050647036,-500.0,0.00014246,2]
[346534445,1735050647046,-500.0,0.00014246,2]
[346534446,1735050647058,-1389.9,0.00014246,2]
[346534447,1735050647069,-500.0,0.00014246,2]
[346534448,1735050647080,-151.0,0.00014246,2]
[346534449,1735050647091,-151.0,0.00014246,2]
[346534450,1735050647103,-2060.63,0.00014246,2]
[346534451,1735050647114,-500.0,0.00014246,2]
[346534452,1735050647127,-500.0,0.00014246,2]
[346534453,1735050647140,-561.44,0.00014246,2]
[346534454,1735050647151,-500.0,0.00014246,2]
[346534455,1735050647163,-500.0,0.00014246,2]
[346534456,1735050647175,-500.0,0.00014246,2]
[346534457,1735050647187,-984.63,0.00014246,2]
[346534458,1735050647199,-348.502782,0.00014246,2]
[346534459,1735050647211,-348.502782,0.00014246,2]
[346534460,1735050647225,-199.69,0.00014246,2]
[346534461,1735050647237,-348.502782,0.00014246,2]
[346534462,1735050647248,-348.502782,0.00014246,2]
[346534463,1735050647260,-684.96,0.00014246,2]
[346534464,1735050647272,-500.0,0.00014246,2]
[346534465,1735050647284,-566.91,0.00014246,2]
[346534466,1735050647296,-151.0,0.00014246,2]
[346534467,1735050647309,-256.756996,0.00014246,2]
[346534468,1735050647321,-649.62,0.00014246,2]
[346534469,1735050647335,-555.79,0.00014246,2]
[346534470,1735050647350,-500.0,0.00014246,2]
[346534471,1735050647362,-500.0,0.00014246,2]
[346534472,1735050647374,-500.0,0.00014246,2]
[346534473,1735050647386,-500.0,0.00014246,2]
[346534474,1735050647398,-1169.39,0.00014246,2]
[346534475,1735050647409,-500.0,0.00014246,2]
[346534476,1735050647421,-500.0,0.00014246,2]
[346534477,1735050647432,-151.0,0.00014246,2]
[346534478,1735050647444,-151.0,0.00014246,2]
[346534479,1735050647455,-500.0,0.00014246,2]
[346534480,1735050647467,-500.0,0.00014246,2]
[346534481,1735050647480,-3951.48,0.00014246,2]
[346534482,1735050647492,-500.0,0.00014246,2]
[346534483,1735050647503,-500.0,0.00014246,2]
[346534484,1735050647515,-500.0,0.00014246,2]
[346534485,1735050647526,-3100.18,0.00014246,2]
[346534486,1735050647537,-3157.35,0.00014246,2]
[346534487,1735050647549,-717.75,0.00014246,2]
[346534488,1735050647560,-500.0,0.00014246,2]
[346534489,1735050647572,-155.467653,0.00014246,2]
[346534490,1735050647583,-155.467653,0.00014246,2]
[346534491,1735050647594,-155.467653,0.00014246,2]
[346534492,1735050647608,-155.467653,0.00014246,2]
[346534493,1735050647622,-397.959906,0.00014246,2]
[346534494,1735050647633,-397.959906,0.00014246,2]
[346534495,1735050647645,-500.0,0.00014246,2]
[346534496,1735050647657,-500.0,0.00014246,2]
[346534497,1735050647669,-397.959906,0.00014246,2]
[346534498,1735050647681,-397.959906,0.00014246,2]
[346534499,1735050647693,-218.010155,0.00014246,2]
[346534500,1735050647704,-500.0,0.00014246,2]
[346534501,1735050647716,-500.0,0.00014246,2]
[346534502,1735050647732,-1076.77,0.00014246,2]
[346534503,1735050647744,-285.093826,0.00014246,2]
[346534504,1735050647756,-285.093826,0.00014246,2]
[346534505,1735050647768,-500.0,0.00014246,2]
[346534506,1735050647780,-1284.08,0.00014246,2]
[346534507,1735050647792,-500.0,0.00014246,2]
[346534508,1735050647804,-10043.5270668,0.00014246,2]
[346534509,1735050647831,-784.9829332,0.00014246,2]
[346534510,1735050647843,-1800.25,0.00014246,2]
[346534511,1735050647855,-285.093826,0.00014246,2]
[346534512,1735050647867,-500.0,0.00014246,2]
[346534513,1735050647878,-285.093826,0.00014246,2]
[346534514,1735050647890,-151.0,0.00014246,2]
[346534515,1735050647903,-151.0,0.00014246,2]
[346534516,1735050647915,-611.17,0.00014246,2]
[346534517,1735050647927,-1004.81,0.00014246,2]
[346534518,1735050647938,-151.0,0.00014246,2]
[346534519,1735050647950,-1924.26,0.00014246,2]
[346534520,1735050647963,-883.59,0.00014246,2]
[346534521,1735050647974,-552.01775346,0.00014246,2]
[346534522,1735050647996,-1603.20224654,0.00014246,2]
[346534523,1735050648007,-149.29775346,0.00014246,2]
[346534524,1735050650000,-2212.66224654,0.00014246,2]
[346534525,1735050650011,-500.0,0.00014246,2]
[346534526,1735050650021,-1152.33,0.00014246,2]
[346534527,1735050650031,-2464.02,0.00014246,2]
[346534528,1735050650040,-500.0,0.00014246,2]
[346534529,1735050650050,-525.51709447,0.00014246,2]
[346534530,1735050650059,-500.0,0.00014246,2]
[346534531,1735050650069,-1017.05,0.00014246,2]
[346534532,1735050650078,-151.0,0.00014246,2]
[346534533,1735050650088,-152.644677,0.00014246,2]
[346534534,1735050650097,-561.64,0.00014246,2]
[346534535,1735050650106,-151.0,0.00014246,2]
[346534536,1735050650116,-316.71425195,0.00014246,2]
[346534537,1735050650125,-151.0,0.00014246,2]
[346534538,1735050650134,-500.0,0.00014246,2]
[346534539,1735050650143,-2231.0,0.00014246,2]
[346534540,1735050650152,-218.71023604,0.00014246,2]
[346534541,1735050650164,-618.47436123,0.00014246,2]
[346534542,1735050650207,-1090.62540273,0.00014246,2]
[346534543,1735050650216,-1336.69,0.00014246,2]
[346534544,1735050650226,-500.0,0.00014246,2]
[346534545,1735050650239,-1574.48,0.00014246,2]
[346534546,1735050650248,-309.30459727,0.00014246,2]
[346534547,1735050652388,-500.0,0.00013698,2]
[346534548,1735050652398,-500.0,0.00013972,2]
[346534549,1735050652408,-190.69540273,0.00014246,2]
[346534550,1735050652419,-176.44081315,0.00014246,2]
[346534551,1735050652427,-500.0,0.00014246,2]
[346534552,1735050652437,-1940.3,0.00014246,2]
[346534553,1735050652447,-1183.61,0.00014246,2]
[346534554,1735050652456,-1900.59,0.00014246,2]
[346534555,1735050652465,-689.43,0.00014246,2]
[346534556,1735050652475,-1394.48,0.00014246,2]
[346534557,1735050652490,-1292.19,0.00014246,2]
[346534558,1735050652499,-503.40245848,0.00014246,2]
[346534559,1735050652509,-509.31,0.00014246,2]
[346534560,1735050652520,-500.0,0.00014246,2]
[346534561,1735050652530,-504.02185331,0.00014246,2]
[346534562,1735050652539,-576.36,0.00014246,2]
[346534563,1735050652549,-500.0,0.00014246,2]
[346534564,1735050652559,-500.0,0.00014246,2]
[346534565,1735050652568,-500.0,0.00014246,2]
[346534566,1735050652578,-638.07,0.00014246,2]
[346534567,1735050652588,-759.25,0.00014246,2]
[346534568,1735050652598,-500.0,0.00014246,2]
[346534569,1735050652608,-175.26754833,0.00014246,2]
[346534570,1735050653224,-1867.69,0.00013698,2]
[346534571,1735050653238,-1867.69,0.00013972,2]
[346534572,1735050653248,-701.53245167,0.00014246,2]
[346534573,1735050653257,-500.0,0.00014246,2]
[346534574,1735050653266,-500.0,0.00014246,2]
[346534575,1735050653275,-500.0,0.00014246,2]
[346534576,1735050653285,-500.0,0.00014246,2]
[346534577,1735050653295,-500.0,0.00014246,2]
[346534578,1735050653304,-500.0,0.00014246,2]
[346534579,1735050653314,-500.0,0.00014246,2]
[346534580,1735050653323,-1749.75,0.00014246,2]
[346534581,1735050653334,-500.0,0.00014246,2]
[346534582,1735050653344,-952.83,0.00014246,2]
[346534583,1735050653354,-1247.80458456,0.00014246,2]
[346534584,1735050653595,-2237.027059,0.00014246,2]
[346534586,1735050680958,1628.78,0.00023,120]
[346534591,1735051045525,4925.96,0.0001002,2]
[346534615,1735051550371,-2151.7069191,0.00012948,2]
[346534616,1735051550393,-4057.6685577,0.00013078,2]
[346534617,1735051550414,-300.0,0.00013212,2]
[346534618,1735051550435,-300.0,0.00013212,2]
[346534619,1735051550456,-2123.0,0.00013213,2]
[346534620,1735051550476,-533.0,0.00013213,2]
[346534621,1735051550498,-2350.0,0.00013213,2]
[346534622,1735051550520,-150.0,0.00013213,2]
[346534623,1735051550541,-397.553,0.0001354,2]
[346534624,1735051550561,-8668.80919007,0.000136,2]
[346534625,1735051596115,-519.76689342,0.00013598,2]
[346534626,1735051596136,-1275.97916254,0.000136,2]
[346534627,1735051596158,-500.0,0.00013697,2]
[346534628,1735051596182,-500.0,0.00013697,2]
[346534629,1735051596205,-285.50819642,0.00013697,2]
[346534630,1735051596226,-280.0,0.00013697,2]
[346534631,1735051596248,-300.0,0.00013697,2]
[346534632,1735051596267,-500.0,0.00013698,2]
[346534633,1735051596288,-530.06642824,0.00013698,2]
[346534634,1735051596309,-530.51,0.00013698,2]
[346534635,1735051596331,-500.0,0.00013698,2]
[346534636,1735051596352,-553.49,0.00013698,2]
[346534637,1735051596373,-461.2891239,0.00013698,2]
[346534638,1735051596394,-500.0,0.00013698,2]
[346534639,1735051596416,-375.13560387,0.00013698,2]
[346534640,1735051596436,-500.0,0.00013698,2]
[346534641,1735051596457,-500.0,0.00013698,2]
[346534642,1735051596478,-500.0,0.00013698,2]
[346534643,1735051596500,-500.0,0.00013698,2]
[346534644,1735051596523,-500.0,0.00013698,2]
[346534645,1735051596546,-500.0,0.00013698,2]
[346534646,1735051596568,-500.0,0.00013698,2]
[346534647,1735051596590,-500.0,0.00013698,2]
[346534648,1735051596611,-147.86023261,0.00013698,2]
[346534650,1735051631091,-300.0,0.00013697,2]
[346534651,1735051631113,-352.13976739,0.00013698,2]
[346534652,1735051631136,-500.0,0.00013698,2]
[346534653,1735051631159,-500.0,0.00013698,2]
[346534654,1735051631181,-500.0,0.00013698,2]
[346534655,1735051631203,-500.0,0.00013698,2]
[346534656,1735051631226,-500.0,0.00013698,2]
[346534657,1735051631249,-500.0,0.00013698,2]
[346534658,1735051631270,-505.0,0.00013698,2]
[346534659,1735051631292,-500.0,0.00013698,2]
[346534660,1735051631318,-790.47,0.00013698,2]
[346534661,1735051631341,-500.0,0.00013698,2]
[346534662,1735051631362,-810.76,0.00013698,2]
[346534663,1735051631383,-500.0,0.00013698,2]
[346534664,1735051631404,-500.0,0.00013698,2]
[346534665,1735051631425,-500.0,0.00013698,2]
[346534666,1735051631447,-503.37816682,0.00013698,2]
[346534667,1735051631469,-500.0,0.00013698,2]
[346534668,1735051631490,-500.0,0.00013698,2]
[346534669,1735051631512,-500.0,0.00013698,2]
[346534670,1735051631534,-500.0,0.00013698,2]
[346534671,1735051631556,-500.0,0.00013698,2]
[346534672,1735051631579,-500.0,0.00013698,2]
[346534673,1735051631600,-500.0,0.00013698,2]
[346534674,1735051631622,-500.0,0.00013698,2]
[346534675,1735051631643,-500.0,0.00013698,2]
[346534676,1735051631664,-500.0,0.00013698,2]
[346534677,1735051631686,-500.0,0.00013698,2]
[346534678,1735051631707,-500.0,0.00013698,2]
[346534679,1735051631728,-500.0,0.00013698,2]
[346534680,1735051631752,-500.0,0.00013698,2]
[346534681,1735051631775,-833.73,0.00013698,2]
[346534682,1735051631796,-503.10281426,0.00013698,2]
[346534683,1735051631818,-500.0,0.00013698,2]
[346534684,1735051632003,-924.99,0.00013698,2]
[346534685,1735051632025,-830.01,0.00013698,2]
[346534686,1735051632047,-500.0,0.00013698,2]
[346534687,1735051632071,-503.34526869,0.00013698,2]
[346534688,1735051632101,-500.0,0.00013698,2]
[346534689,1735051632124,-500.0,0.00013698,2]
[346534690,1735051632147,-767.2,0.00013698,2]
[346534691,1735051632169,-500.0,0.00013698,2]
[346534692,1735051632191,-500.0,0.00013698,2]
[346534693,1735051632214,-500.0,0.00013698,2]
[346534694,1735051632237,-504.73602622,0.00013698,2]
[346534695,1735051632260,-500.0,0.00013698,2]
[346534696,1735051632282,-500.0,0.00013698,2]
[346534697,1735051632305,-500.0,0.00013698,2]